bitfinex/quotes_BTCUSD_20241130
["timestamp","ask_amount","ask_price","bid_price","bid_amount"]
[1732936366913,0.00092499,96748.0,96747.0,0.57579659]
[1732936367161,0.00092499,96748.0,96747.0,0.52989659]
[1732936367372,0.00092499,96748.0,96747.0,0.63125859]
[1732936367585,0.00092499,96748.0,96747.0,0.21660161]
[1732936367785,0.00092499,96748.0,96747.0,0.22460161]
[1732936368607,0.00092499,96748.0,96747.0,0.21660161]
[1732936368807,0.00092499,96748.0,96747.0,0.21360161]
[1732936369113,0.00092499,96748.0,96747.0,0.22343087]
[1732936369249,0.00092499,96748.0,96747.0,0.21560161]
[1732936369447,0.00092499,96748.0,96747.0,0.21543087]
[1732936369947,0.00092499,96748.0,96747.0,0.21843087]
[1732936370160,0.00092499,96748.0,96747.0,0.21660161]
[1732936370387,0.00092499,96748.0,96747.0,0.21360161]
[1732936370596,0.00092499,96748.0,96747.0,0.22543091]
[1732936370801,0.00092499,96748.0,96747.0,0.22360161]
[1732936371662,0.00092499,96748.0,96747.0,0.12023961]
[1732936371864,0.00092499,96748.0,96747.0,0.11823961]
[1732936372083,0.00092499,96748.0,96747.0,0.22343091]
[1732936372319,0.00092499,96748.0,96747.0,0.22460161]
[1732936375240,0.00092499,96748.0,96747.0,0.11312196]
[1732936375649,0.00558311,96748.0,96747.0,0.11312196]
[1732936376084,0.00558311,96748.0,96747.0,0.21648396]
[1732936376303,0.00558311,96748.0,96747.0,0.11312196]
[1732936377566,0.00558311,96748.0,96747.0,0.11311979]
[1732936377775,0.00092499,96748.0,96747.0,0.11494912]
[1732936377979,0.00092499,96748.0,96747.0,0.21831112]
[1732936378179,0.10224434,96751.0,96747.0,0.21648179]
[1732936378384,0.10224434,96751.0,96750.0,0.27774278]
[1732936378589,0.10224434,96751.0,96750.0,0.02973744]
[1732936379657,0.103357,96752.0,96750.0,0.02973744]
[1732936379873,0.103357,96752.0,96751.0,0.02973744]
[1732936380296,0.103357,96752.0,96751.0,0.30748022]
[1732936380562,0.103357,96752.0,96751.0,0.02973744]
[1732936380807,0.103357,96752.0,96751.0,0.30748022]
[1732936381077,0.103357,96752.0,96751.0,0.30747976]
[1732936381659,0.103357,96752.0,96751.0,0.02973698]
[1732936382229,0.103357,96752.0,96751.0,0.31547976]
[1732936382433,0.103357,96752.0,96751.0,0.03773698]
[1732936384903,0.103357,96752.0,96751.0,0.03173698]
[1732936385584,0.103357,96752.0,96751.0,0.02973698]
[1732936385718,0.103357,96752.0,96751.0,0.03573698]
[1732936386351,0.103357,96752.0,96751.0,0.03473698]
[1732936386623,0.10801512,96752.0,96751.0,0.04273698]
[1732936386831,0.10888022,96752.0,96751.0,0.04273698]
[1732936387226,0.10888022,96752.0,96751.0,0.013]
[1732936387459,0.10888022,96752.0,96751.0,0.0427369]
[1732936388091,0.15568022,96752.0,96751.0,0.0427369]
[1732936388301,0.23078022,96752.0,96751.0,0.0427369]
[1732936388964,0.23078022,96752.0,96751.0,0.0407369]
[1732936389418,0.15568022,96752.0,96751.0,0.0297369]
[1732936389632,0.10888022,96752.0,96751.0,0.0307369]
[1732936390789,0.10888022,96752.0,96751.0,0.03073946]
[1732936391188,0.10888022,96752.0,96751.0,0.02973946]
[1732936391590,0.10888022,96752.0,96751.0,0.03173946]
[1732936392251,0.10888022,96752.0,96751.0,0.03373946]
[1732936392483,0.10888022,96752.0,96751.0,0.03173946]
[1732936392691,0.10888022,96752.0,96751.0,0.03473946]
[1732936393043,0.10888022,96752.0,96751.0,0.005]
[1732936393456,0.1042221,96752.0,96751.0,0.005]
[1732936394068,0.1042221,96752.0,96751.0,0.03473854]
[1732936397156,0.1042221,96752.0,96751.0,0.03473842]
[1732936398598,0.1042221,96752.0,96751.0,0.02973842]
[1732936398754,0.1042221,96752.0,96751.0,0.03073842]
[1732936399118,0.1042221,96752.0,96751.0,0.03646822]
[1732936400627,0.1042221,96752.0,96751.0,0.03000335]
[1732936401151,0.0008651,96752.0,96751.0,0.03000335]
[1732936401808,0.0008651,96752.0,96751.0,0.0067298]
[1732936402231,0.0008651,96752.0,96751.0,0.0057298]
[1732936402401,0.0008651,96752.0,96751.0,0.0017298]
[1732936402598,0.0008651,96752.0,96751.0,0.28048714]
[1732936402599,0.1042221,96752.0,96751.0,0.28048714]
[1732936402782,0.1042221,96752.0,96751.0,0.28548714]
[1732936402990,0.1042221,96752.0,96751.0,0.29841679]
[1732936403207,0.1042221,96752.0,96751.0,0.28548714]
[1732936404462,0.0008651,96752.0,96751.0,0.0077298]
[1732936405013,0.1042221,96752.0,96751.0,0.03746788]
[1732936405417,0.0008651,96752.0,96751.0,0.03746788]
[1732936408621,0.0008651,96752.0,96751.0,0.14082588]
[1732936408819,0.0008651,96752.0,96751.0,0.03746788]
[1732936409668,0.0008651,96752.0,96751.0,0.03246788]
[1732936409847,0.0008651,96752.0,96751.0,0.03846788]
[1732936410095,0.0008651,96752.0,96751.0,0.14182588]
[1732936410401,0.0008651,96752.0,96751.0,0.14082588]
[1732936410545,0.0008651,96752.0,96751.0,0.03746788]
[1732936410961,0.103355,96754.0,96751.0,0.03946788]
[1732936411184,0.0008653,96752.0,96751.0,0.0097298]
[1732936411425,0.0008653,96752.0,96751.0,0.03946753]
[1732936411797,0.0008653,96752.0,96751.0,0.03746753]
[1732936412242,0.0008653,96752.0,96751.0,0.03846753]
[1732936413313,0.0008653,96752.0,96751.0,0.14082553]
[1732936413745,0.0008653,96752.0,96751.0,0.03746753]
[1732936415731,0.0008653,96752.0,96751.0,0.03946753]
[1732936418399,0.0008653,96752.0,96751.0,0.03946756]
[1732936419883,0.0008653,96752.0,96751.0,0.24567077]
[1732936420116,0.0008653,96752.0,96751.0,0.65637104]
[1732936420334,0.0008653,96752.0,96751.0,0.24567077]
[1732936425870,0.00015173,96761.0,96751.0,0.16170717]
[1732936426255,0.00015173,96761.0,96755.0,0.103352]
[1732936426453,0.00015173,96761.0,96756.0,0.02973776]
[1732936426660,0.00015173,96761.0,96757.0,0.02973776]
[1732936426873,0.10349873,96761.0,96758.0,0.02973776]
[1732936427111,0.10349873,96761.0,96759.0,0.02973776]
[1732936427287,0.00015173,96761.0,96760.0,0.02973776]
[1732936427973,0.00015173,96761.0,96760.0,0.13308576]
[1732936428181,0.00015173,96761.0,96760.0,0.13491478]
[1732936428590,0.0017306,96770.0,96760.0,0.05096118]
[1732936428894,0.0017306,96770.0,96764.0,0.103344]
[1732936429090,0.0017306,96770.0,96764.0,0.15247616]
[1732936429304,0.0017306,96770.0,96764.0,0.13308176]
[1732936430641,0.0017306,96770.0,96764.0,0.13408176]
[1732936431330,0.1050676,96770.0,96764.0,0.13408176]
[1732936431554,0.0017306,96770.0,96764.0,0.13408176]
[1732936432151,0.0017306,96770.0,96764.0,0.13907515]
[1732936432593,0.0017306,96770.0,96764.0,0.5496229]
[1732936433016,0.0017306,96770.0,96764.0,0.65246811]
[1732936433245,0.0017306,96770.0,96764.0,0.80136811]
[1732936433499,0.0017306,96770.0,96764.0,0.40082036]
[1732936433924,0.0017306,96770.0,96764.0,0.42021476]
[1732936434071,0.0017306,96770.0,96764.0,0.40082036]
[1732936434720,0.0017306,96770.0,96764.0,0.39982036]
[1732936435054,0.0017306,96770.0,96764.0,0.40082036]
[1732936435188,0.0017306,96770.0,96764.0,0.39582036]
[1732936435406,0.0017306,96770.0,96764.0,0.40482036]
[1732936435836,0.0017306,96770.0,96764.0,0.41982036]
[1732936436683,0.0017306,96770.0,96764.0,0.41082036]
[1732936436918,0.0017306,96770.0,96764.0,0.42209712]
[1732936437142,0.0017306,96770.0,96764.0,0.43109712]
[1732936440189,0.0017306,96770.0,96768.0,0.181739]
[1732936440394,0.0017306,96770.0,96768.0,0.31614401]
[1732936440622,0.0017306,96770.0,96768.0,0.31431536]
[1732936441038,0.0002,96779.0,96778.0,0.103329]
[1732936441255,0.0002,96779.0,96778.0,0.20800286]
[1732936441453,0.0002,96779.0,96778.0,0.23773401]
[1732936441679,0.0002,96779.0,96778.0,0.23590536]
[1732936442306,0.00079783,96779.0,96778.0,0.23890536]
[1732936442568,0.00079783,96779.0,96778.0,0.24690536]
[1732936445616,0.00079783,96779.0,96778.0,0.14357636]
[1732936445904,0.00079783,96779.0,96778.0,0.04073115]
[1732936446134,0.10412583,96779.0,96778.0,0.04073115]
[1732936446341,0.15182583,96779.0,96778.0,0.04073115]
[1732936447058,0.15269103,96779.0,96778.0,0.04073115]
[1732936447478,0.15269103,96779.0,96778.0,0.03773115]
[1732936447910,0.15269103,96779.0,96778.0,0.02973115]
[1732936448132,0.15269103,96779.0,96778.0,0.02973078]
[1732936448373,0.15269103,96779.0,96778.0,0.03473078]
[1732936448600,0.15269103,96779.0,96778.0,0.03273078]
[1732936448810,0.15269103,96779.0,96778.0,0.04073078]
[1732936449020,0.15269103,96779.0,96778.0,0.02973078]
[1732936449434,0.15269103,96779.0,96778.0,0.03673078]
[1732936449660,0.15269103,96779.0,96778.0,0.03073078]
[1732936450501,0.15269103,96779.0,96778.0,0.02973078]
[1732936451021,0.15269103,96779.0,96778.0,0.03773078]
[1732936454319,0.10499103,96779.0,96778.0,0.03773078]
[1732936454922,0.10499103,96779.0,96778.0,0.03126743]
[1732936455102,0.10499103,96779.0,96778.0,0.0377306]
[1732936456463,0.00166303,96779.0,96778.0,0.0377306]
[1732936456682,0.10499103,96779.0,96778.0,0.0377306]
[1732936457329,0.10499103,96779.0,96778.0,0.0297306]
[1732936457751,0.10499103,96779.0,96778.0,0.0387306]
[1732936458320,0.10499103,96779.0,96778.0,0.009]
[1732936458521,0.10499103,96779.0,96778.0,0.03226743]
[1732936458727,0.10499103,96779.0,96778.0,0.0387306]
[1732936462331,0.23039103,96779.0,96778.0,0.0387306]
[1732936464787,0.23039103,96779.0,96778.0,0.009]
[1732936465009,0.23039103,96779.0,96778.0,0.03873095]
[1732936465010,0.15269103,96779.0,96778.0,0.03873095]
[1732936465567,0.10499103,96779.0,96778.0,0.03873095]
[1732936470726,0.206653,96781.0,96778.0,0.03873095]
[1732936470853,0.103327,96780.0,96779.0,0.02973095]
[1732936472370,0.103327,96780.0,96779.0,0.03673095]
[1732936473529,0.103327,96780.0,96779.0,0.02973095]
[1732936473969,0.103327,96780.0,96779.0,0.03673095]
[1732936474872,0.00017924,96781.0,96779.0,0.3141749]
[1732936475079,0.10350524,96781.0,96780.0,0.02973095]
[1732936475530,0.00017924,96781.0,96780.0,0.02973095]
[1732936475734,0.10350524,96781.0,96780.0,0.02973095]
[1732936475897,0.00017924,96781.0,96780.0,0.02973095]
[1732936476115,0.10350524,96781.0,96780.0,0.3071749]
[1732936477127,0.10350524,96781.0,96780.0,0.3091749]
[1732936477806,0.10350524,96781.0,96780.0,0.03173095]
[1732936478040,0.10350524,96781.0,96780.0,0.03873095]
[1732936478713,0.10350524,96781.0,96780.0,0.02973095]
[1732936478923,0.10350524,96781.0,96780.0,0.03073095]
[1732936479151,0.10350524,96781.0,96780.0,0.03573095]
[1732936479573,0.10350524,96781.0,96780.0,0.03473095]
[1732936479963,0.10350524,96781.0,96780.0,0.03573095]
[1732936480836,0.10350524,96781.0,96780.0,0.03073095]
[1732936481255,0.10350524,96781.0,96780.0,0.03573095]
[1732936481503,0.10350524,96781.0,96780.0,0.02973095]
[1732936481940,0.10350524,96781.0,96780.0,0.03673095]
[1732936482359,0.10350524,96781.0,96780.0,0.03573095]
[1732936482572,0.10350524,96781.0,96780.0,0.03073095]
[1732936483023,0.10350524,96781.0,96780.0,0.02973095]
[1732936483438,0.10350524,96781.0,96780.0,0.30884479]
[1732936483988,0.10437024,96781.0,96780.0,0.31484479]
[1732936485054,0.10437024,96781.0,96780.0,0.03673095]
[1732936485265,0.10437024,96781.0,96780.0,0.02973095]
[1732936485475,0.10437024,96781.0,96780.0,0.30784479]
[1732936486103,0.10437024,96781.0,96780.0,0.31084479]
[1732936486307,0.10437024,96781.0,96780.0,0.03273095]
[1732936487127,0.10437024,96781.0,96780.0,0.31084479]
[1732936487331,0.10437024,96781.0,96780.0,0.30784479]
[1732936487782,0.10437024,96781.0,96780.0,0.30984479]
[1732936487981,0.10437024,96781.0,96780.0,0.30884479]
[1732936488484,0.10437024,96781.0,96780.0,0.31084479]
[1732936488699,0.10437024,96781.0,96780.0,0.03273095]
[1732936489323,0.10437024,96781.0,96780.0,0.02973095]
[1732936490477,0.00104424,96781.0,96780.0,0.03073095]
[1732936490690,0.103324,96783.0,96780.0,0.11353095]
[1732936490904,0.103322,96785.0,96781.0,0.44058027]
[1732936491096,0.27135353,96790.0,96780.0,0.08297924]
[1732936491097,0.27135353,96790.0,96782.0,0.44058027]
[1732936491301,0.103321,96786.0,96783.0,0.44058027]
[1732936491511,0.206635,96789.0,96784.0,0.02973095]
[1732936491793,0.103321,96785.0,96783.0,0.41084932]
[1732936492011,0.103321,96785.0,96784.0,0.02972805]
[1732936492364,0.206635,96789.0,96784.0,0.02972805]
[1732936492576,0.206635,96789.0,96785.0,0.02972805]
[1732936492775,0.206635,96789.0,96786.0,0.00646262]
[1732936492984,0.103318,96788.0,96787.0,0.02972807]
[1732936494491,0.103318,96788.0,96787.0,0.03372807]
[1732936495135,0.01,96825.0,96787.0,0.03372807]
[1732936495367,0.25,96836.0,96796.0,0.27816731]
[1732936495368,0.103307,96798.0,96796.0,0.27816731]
[1732936495614,0.103307,96798.0,96797.0,0.30789538]
[1732936495822,0.103307,96798.0,96797.0,0.02972807]
[1732936496021,0.103309,96797.0,96792.0,0.103313]
[1732936496232,0.0002,96799.0,96793.0,0.02972515]
[1732936496461,0.0002,96799.0,96797.0,0.27800706]
[1732936496657,0.103507,96799.0,96798.0,0.02972515]
[1732936496871,0.0002,96799.0,96798.0,0.30773221]
[1732936497066,0.0002,96799.0,96798.0,0.02972515]
[1732936497292,0.103506,96799.0,96798.0,0.02972515]
[1732936497491,0.0002,96799.0,96798.0,0.02972515]
[1732936497750,0.103506,96799.0,96798.0,0.02972515]
[1732936497920,0.103506,96799.0,96798.0,0.03172515]
[1732936498383,0.0002,96799.0,96798.0,0.03872515]
[1732936498724,0.0002,96799.0,96798.0,0.31673221]
[1732936498926,0.0002,96799.0,96798.0,0.14203215]
[1732936499331,0.0002,96799.0,96798.0,0.03872515]
[1732936499759,0.103506,96799.0,96798.0,0.03872515]
[1732936500381,0.35635121,96799.0,96798.0,0.03872515]
[1732936500809,0.35635121,96799.0,96798.0,0.03672515]
[1732936501163,0.35635121,96799.0,96798.0,0.02972515]
[1732936501363,0.35635121,96799.0,96798.0,0.03372515]
[1732936501571,0.35635121,96799.0,96798.0,0.0337277]
[1732936501782,0.35635121,96799.0,96798.0,0.0297277]
[1732936501992,0.253506,96799.0,96798.0,0.0297277]
[1732936504828,0.26474045,96799.0,96798.0,0.0297277]
[1732936506273,0.36758566,96799.0,96798.0,0.0297277]
[1732936506477,0.41448566,96799.0,96798.0,0.0297277]
[1732936506686,0.49208566,96799.0,96798.0,0.0297277]
[1732936512392,0.49208566,96799.0,96798.0,0.01680261]
[1732936513505,0.49208566,96799.0,96798.0,0.01780261]
[1732936513956,0.49208566,96799.0,96798.0,0.00646254]
[1732936514164,0.49208566,96799.0,96798.0,0.00746254]
[1732936514658,0.50208566,96799.0,96798.0,5.4e-07]
[1732936514865,0.61491712,96799.0,96798.0,5.4e-07]
[1732936515009,0.253324,96782.0,96781.0,0.00173]
[1732936515209,0.48066921,96782.0,96781.0,0.01207309]
[1732936517829,0.5028127,96782.0,96781.0,0.01207309]
[1732936518061,0.5018127,96782.0,96781.0,0.01207309]
[1732936518448,0.5028127,96782.0,96781.0,0.01207309]
[1732936519993,0.35716921,96782.0,96781.0,0.01207309]
[1732936520160,0.254324,96782.0,96781.0,0.01207309]
[1732936520364,0.26527837,96782.0,96781.0,0.02500176]
[1732936521265,0.26427837,96782.0,96781.0,0.02500176]
[1732936521916,0.26527837,96782.0,96781.0,0.02500176]
[1732936522258,0.26527837,96782.0,96781.0,0.08303]
[1732936522259,0.104324,96782.0,96781.0,0.08303]
[1732936522387,0.104324,96782.0,96781.0,0.10629891]
[1732936522628,0.104324,96782.0,96781.0,0.02499891]
[1732936523504,0.103324,96782.0,96781.0,0.02499891]
[1732936523717,0.103324,96782.0,96781.0,0.02824727]
[1732936523924,0.103324,96782.0,96781.0,0.02499891]
[1732936524341,0.103324,96782.0,96781.0,0.02599891]
[1732936524784,0.103324,96782.0,96781.0,0.02924727]
[1732936525007,0.103324,96782.0,96781.0,0.02599891]
[1732936525225,0.103324,96782.0,96781.0,0.00273]
[1732936525433,0.103324,96782.0,96781.0,0.015657]
[1732936525670,0.103324,96782.0,96781.0,0.03892558]
[1732936525944,0.103324,96782.0,96781.0,0.02599858]
[1732936526359,0.103324,96782.0,96781.0,0.02499858]
[1732936526581,0.103324,96782.0,96781.0,0.03146205]
[1732936527250,0.103324,96782.0,96781.0,0.03346205]
[1732936530454,0.22944521,96782.0,96780.0,0.00017924]
[1732936530652,0.35617121,96781.0,96780.0,0.00017924]
[1732936532567,0.37706478,96781.0,96780.0,0.00017924]
[1732936532766,0.37706478,96781.0,96748.0,0.27765355]
[1732936532767,0.206675,96770.0,96748.0,0.27765355]
[1732936532988,0.01,96778.0,96738.0,0.0017302]
[1732936532989,0.334651,96757.0,96738.0,0.0017302]
[1732936533164,0.43749621,96757.0,96738.0,0.0017302]
[1732936537525,0.253357,96752.0,96738.0,0.0017302]
[1732936537725,0.35620221,96752.0,96738.0,0.0017302]
[1732936538263,0.35620221,96752.0,96738.0,0.00482379]
[1732936538451,0.35620221,96752.0,96738.0,0.0017302]
[1732936538921,0.35620221,96752.0,96739.0,0.00309264]
[1732936539131,0.35820221,96752.0,96739.0,0.00309264]
[1732936539530,0.35820221,96752.0,96738.0,0.00482284]
[1732936539531,0.35620221,96752.0,96738.0,0.00482284]
[1732936539751,0.10337,96739.0,96738.0,0.0017302]
[1732936539966,0.10337,96739.0,96722.0,0.0017304]
[1732936539967,0.103388,96723.0,96722.0,0.0017304]
[1732936540194,0.103388,96723.0,96722.0,0.01466561]
[1732936540403,0.324488,96723.0,96722.0,0.01466561]
[1732936540629,0.324488,96723.0,96722.0,0.02501443]
[1732936541269,0.253388,96723.0,96722.0,0.02561226]
[1732936542631,0.260388,96723.0,96722.0,0.03208027]
[1732936542842,0.254388,96723.0,96722.0,0.03208027]
[1732936543059,0.253388,96723.0,96722.0,0.03208027]
[1732936543267,0.257388,96723.0,96722.0,0.03208027]
[1732936543476,0.254388,96723.0,96722.0,0.03208027]
[1732936543917,0.004,96723.0,96722.0,0.03208027]
[1732936544344,0.004,96723.0,96722.0,0.03207638]
[1732936544345,0.005,96723.0,96722.0,0.03207638]
[1732936544776,0.103378,96732.0,96722.0,0.03207638]
[1732936545058,0.10284521,96738.0,96723.0,0.02974815]
[1732936545271,0.10284521,96738.0,96722.0,0.00232823]
[1732936545272,0.20621621,96738.0,96737.0,0.00308981]
[1732936545507,0.253371,96738.0,96737.0,0.00308981]
[1732936545711,0.253371,96738.0,96737.0,0.02974815]
[1732936545919,0.253371,96738.0,96737.0,0.03283614]
[1732936546140,0.253371,96738.0,96737.0,0.02974815]
[1732936547223,0.254371,96738.0,96737.0,0.02974815]
[1732936548501,0.254371,96738.0,96737.0,0.03074815]
[1732936548713,0.253371,96738.0,96737.0,0.02974815]
[1732936548924,0.253371,96738.0,96737.0,0.0297455]
[1732936549130,0.253371,96738.0,96737.0,0.0317455]
[1732936551415,0.20672,96749.0,96737.0,0.0317455]
[1732936551613,0.021178,96750.0,96738.0,0.0297455]
[1732936551614,0.103359,96750.0,96738.0,0.0297455]
[1732936551841,0.206705,96756.0,96739.0,0.0297455]
[1732936551842,0.103358,96751.0,96739.0,0.0297455]
[1732936552061,0.02105231,96758.0,96740.0,0.0297455]
[1732936552248,0.10284521,96757.0,96741.0,0.0297455]
[1732936552421,0.206707,96755.0,96742.0,0.0297455]
[1732936552666,0.10284521,96754.0,96743.0,0.0297455]
[1732936552880,0.103362,96747.0,96744.0,0.0297455]
[1732936553106,0.15,96753.0,96745.0,0.0297455]
[1732936553317,0.103363,96746.0,96735.0,0.103374]
[1732936553481,0.103365,96745.0,96736.0,0.02974033]
[1732936553673,0.25284521,96753.0,96737.0,0.02974033]
[1732936553873,0.103366,96744.0,96738.0,0.02974033]
[1732936554182,0.206718,96750.0,96739.0,0.02974033]
[1732936554383,0.103365,96744.0,96740.0,0.02974033]
[1732936554711,0.103365,96744.0,96741.0,0.02974033]
[1732936554863,0.103365,96744.0,96733.0,0.103376]
[1732936554864,0.206718,96750.0,96744.0,0.006]
[1732936555068,0.103364,96745.0,96744.0,0.006]
[1732936555381,0.103364,96745.0,96744.0,0.02974033]
[1732936556219,0.206724,96748.0,96744.0,0.02974033]
[1732936556520,0.206724,96748.0,96745.0,0.02974033]
[1732936556521,0.10284521,96748.0,96745.0,0.02974033]
[1732936556678,0.103364,96745.0,96744.0,0.007]
[1732936556825,0.20620921,96745.0,96744.0,0.03874131]
[1732936557895,0.20620921,96745.0,96744.0,0.03174131]
[1732936558094,0.20620921,96745.0,96744.0,0.02974131]
[1732936558919,0.20620921,96745.0,96744.0,0.03174131]
[1732936561492,0.20620921,96745.0,96744.0,0.03174435]
[1732936564507,0.103364,96745.0,96744.0,0.03174435]
[1732936570943,0.1508653,96751.0,96744.0,0.03174435]
[1732936571115,0.0008653,96751.0,96745.0,0.02974435]
[1732936571313,0.0008653,96751.0,96746.0,0.02974435]
[1732936571537,0.0008653,96751.0,96750.0,0.103359]
[1732936571726,0.0008653,96751.0,96750.0,0.13310335]
[1732936572142,0.0008653,96751.0,96750.0,0.26150335]
[1732936572338,0.0008653,96751.0,96750.0,0.231759]
[1732936572953,0.0008653,96751.0,96750.0,0.233759]
[1732936573151,0.0008653,96751.0,96750.0,0.27049595]
[1732936582146,0.0008653,96751.0,96750.0,0.27049554]
[1732936585826,0.0008653,96751.0,96750.0,0.240759]
[1732936586458,0.0008653,96751.0,96750.0,0.27049554]
[1732936586687,0.0008653,96751.0,96750.0,0.25368793]
[1732936586895,0.0008653,96751.0,96750.0,0.27049554]
[1732936587872,0.1042233,96751.0,96750.0,0.03873654]
[1732936588727,0.35706851,96751.0,96750.0,0.03873654]
[1732936589142,0.35706851,96751.0,96750.0,0.0387433]
[1732936589775,0.35706851,96751.0,96750.0,0.0367433]
[1732936591218,0.35706851,96751.0,96750.0,0.0297433]
[1732936591864,0.36818398,96751.0,96750.0,0.0297433]
[1732936596985,0.26482598,96751.0,96750.0,0.02974272]
[1732936597185,0.36818398,96751.0,96750.0,0.02974272]
[1732936597624,0.57490098,96751.0,96750.0,0.02974272]
[1732936600109,0.69880098,96751.0,96750.0,0.02974272]
[1732936600886,0.103373,96737.0,96736.0,0.00051872]
[1732936601060,0.103373,96737.0,96736.0,0.03026278]
[1732936602127,0.103373,96737.0,96736.0,0.03826278]
[1732936603643,0.103373,96737.0,96736.0,0.00851872]
[1732936603844,0.103373,96737.0,96736.0,0.03826275]
[1732936605682,0.36869777,96751.0,96737.0,0.079]
[1732936605830,0.15,96750.0,96741.0,0.00294301]
[1732936606033,0.103367,96742.0,96741.0,0.00294301]
[1732936606274,0.103367,96742.0,96741.0,0.03268679]
[1732936606663,0.103367,96742.0,96741.0,0.02974378]
[1732936607344,0.103367,96742.0,96741.0,0.03268679]
[1732936607544,0.103367,96742.0,96741.0,0.03668679]
[1732936608831,0.103367,96742.0,96741.0,0.03768679]
[1732936610340,0.103367,96742.0,96741.0,0.03474378]
[1732936610776,0.103367,96742.0,96741.0,0.03768681]
[1732936611211,0.103367,96742.0,96741.0,0.03474378]
[1732936611639,0.103367,96742.0,96741.0,0.0376874]
[1732936613511,0.103367,96742.0,96741.0,0.03474378]
[1732936614225,0.103367,96742.0,96741.0,0.03474379]
[1732936617579,0.103367,96742.0,96741.0,0.0153456]
[1732936617781,0.103367,96742.0,96741.0,0.03474361]
[1732936621497,0.103367,96742.0,96741.0,0.03374361]
[1732936621695,0.103367,96742.0,96741.0,0.02974361]
[1732936622114,0.103367,96742.0,96741.0,0.03274361]
[1732936623374,0.103367,96742.0,96741.0,0.03274371]
[1732936623602,0.103367,96742.0,96741.0,0.03074371]
[1732936623813,0.15,96750.0,96741.0,0.03474371]
[1732936624006,0.15,96750.0,96742.0,0.02974371]
[1732936624250,0.103367,96743.0,96742.0,0.0773]
[1732936624458,0.103367,96743.0,96742.0,0.10704167]
[1732936625520,0.15,96750.0,96742.0,0.10704167]
[1732936625772,0.103365,96744.0,96743.0,0.02974167]
[1732936627513,0.103365,96744.0,96743.0,0.03374167]
[1732936628616,0.206722,96748.0,96743.0,0.03374167]
[1732936628822,0.0008653,96751.0,96744.0,0.02974167]
[1732936629051,0.0008653,96751.0,96749.0,0.27846832]
[1732936629255,0.0008653,96751.0,96750.0,0.02974167]
[1732936629662,0.1029723,96751.0,96750.0,0.02974167]
[1732936630104,0.1029723,96751.0,96747.0,0.103361]
[1732936630329,0.1029723,96751.0,96748.0,0.02973743]
[1732936630536,0.1029723,96751.0,96749.0,0.02973743]
[1732936630735,0.1029723,96751.0,96750.0,0.04073743]
[1732936630940,0.1029723,96751.0,96750.0,0.03273743]
[1732936631151,0.1029723,96751.0,96750.0,0.02973743]
[1732936632745,0.206704,96757.0,96750.0,0.02973743]
[1732936632967,0.01086329,96760.0,96751.0,0.02973743]
[1732936633181,0.103357,96752.0,96750.0,0.003]
[1732936633390,0.103357,96752.0,96750.0,0.011]
[1732936633600,0.103357,96752.0,96751.0,0.02973746]
[1732936634049,0.103357,96752.0,96751.0,0.03473746]
[1732936634626,0.103357,96752.0,96751.0,0.03073746]
[1732936634832,0.103357,96752.0,96751.0,0.03773746]
[1732936635053,0.206701,96758.0,96751.0,0.03773746]
[1732936635252,0.206701,96758.0,96753.0,0.27872422]
[1732936635533,0.103353,96755.0,96754.0,0.02973746]
[1732936636568,0.103353,96755.0,96754.0,0.03033529]
[1732936636779,0.103353,96755.0,96754.0,0.03233529]
[1732936637979,0.103353,96755.0,96754.0,0.03833529]
[1732936640326,0.103353,96755.0,96754.0,0.03833554]
[1732936640549,0.1042181,96755.0,96754.0,0.03833554]
[1732936640903,0.1042181,96755.0,96754.0,0.03633554]
[1732936641107,0.1042181,96755.0,96754.0,0.03033554]
[1732936641510,0.1042181,96755.0,96754.0,0.03433554]
[1732936642166,0.1042181,96755.0,96754.0,0.03533554]
[1732936643850,0.1042181,96755.0,96754.0,0.03533536]
[1732936644100,0.0008651,96755.0,96754.0,0.03533536]
[1732936644297,0.0008651,96755.0,96754.0,0.21978936]
[1732936645382,0.0008651,96755.0,96754.0,0.11643536]
[1732936645754,0.0008651,96755.0,96754.0,0.21978936]
[1732936647143,0.0008651,96755.0,96754.0,0.20944587]
[1732936647354,0.0008651,96755.0,96754.0,0.20298113]
[1732936647799,0.0008651,96755.0,96754.0,0.21978922]
[1732936648031,0.0008651,96755.0,96754.0,0.19005183]
[1732936648241,0.0008651,96755.0,96754.0,0.11643522]
[1732936648658,0.0008651,96755.0,96754.0,0.21978922]
[1732936651619,0.0008651,96755.0,96754.0,0.11643522]
[1732936652451,0.0008651,96755.0,96754.0,0.21978922]
[1732936652653,0.0008651,96755.0,96754.0,0.11643522]
[1732936654439,0.1042181,96755.0,96754.0,0.11643522]
[1732936654661,0.1042181,96755.0,96754.0,0.03533522]
[1732936654868,0.0008651,96755.0,96754.0,0.03533522]
[1732936655299,0.1042181,96755.0,96754.0,0.03533522]
[1732936655524,0.0008651,96755.0,96754.0,0.03533552]
[1732936656694,0.1042181,96755.0,96754.0,0.03533552]
[1732936657096,0.0008651,96755.0,96754.0,0.03533552]
[1732936657680,0.1042181,96755.0,96754.0,0.03533552]
[1732936658808,0.1042181,96755.0,96754.0,0.03533558]
[1732936662479,0.1042181,96755.0,96754.0,0.03533587]
[1732936664631,0.1042181,96755.0,96754.0,0.03828295]
[1732936665509,0.28606331,96755.0,96754.0,0.03533587]
[1732936665750,0.33206331,96755.0,96754.0,0.03533587]
[1732936665954,0.48206331,96755.0,96754.0,0.02240629]
[1732936666370,0.48206331,96755.0,96754.0,0.01840629]
[1732936666647,0.48206331,96755.0,96754.0,0.01740629]
[1732936666856,0.48206331,96755.0,96754.0,0.01940629]
[1732936667131,0.48206331,96755.0,96754.0,0.01740629]
[1732936667399,0.48406331,96755.0,96754.0,0.01740629]
[1732936667610,0.48206331,96755.0,96754.0,0.01740629]
[1732936667830,0.48406331,96755.0,96754.0,0.01740629]
[1732936669295,0.4838201,96755.0,96754.0,0.01740629]
[1732936669507,0.4838201,96755.0,96754.0,0.01740832]
[1732936674470,0.4838201,96755.0,96754.0,0.0070634]
[1732936680650,0.4838201,96755.0,96754.0,0.01740832]
[1732936682013,0.3588201,96755.0,96754.0,0.01740832]
[1732936682223,0.25597489,96755.0,96754.0,0.01740832]
[1732936682441,0.25597489,96755.0,96754.0,0.09250798]
[1732936682858,0.10597489,96755.0,96754.0,0.09250798]
[1732936683083,0.10597489,96755.0,96754.0,0.10543842]
[1732936683303,0.10397489,96755.0,96754.0,0.10543842]
[1732936683521,0.10597489,96755.0,96754.0,0.10543842]
[1732936683743,0.10397489,96755.0,96754.0,0.10543842]
[1732936684175,0.10397489,96755.0,96754.0,0.10643842]
[1732936685720,0.10397489,96755.0,96754.0,0.08704254]
[1732936685929,0.10397489,96755.0,96754.0,0.10643671]
[1732936688104,0.10397489,96755.0,96754.0,0.10816671]